fUSD/lending_fUSD_20240630
["ID","MTS","AMOUNT","RATE_DAILY","PERIOD"]
[330739037,1719748250020,-910.09,0.00013988,3]
[330739038,1719748250030,-500.0,0.00013988,2]
[330739039,1719748250040,-825.53,0.00013988,3]
[330739040,1719748250052,-613.41,0.00013988,3]
[330739041,1719748250062,-595.88,0.00013988,3]
[330739042,1719748250072,-1193.28333926,0.00013988,3]
[330739043,1719748250082,-500.0,0.00013988,3]
[330739044,1719748250091,-500.0,0.00013988,3]
[330739045,1719748250101,-668.35,0.00013988,3]
[330739046,1719748250110,-500.0,0.00013988,3]
[330739047,1719748250122,-500.0,0.00013988,3]
[330739048,1719748250135,-611.09,0.00013988,3]
[330739049,1719748250145,-250.0,0.00013988,3]
[330739050,1719748250155,-500.0,0.00013988,3]
[330739051,1719748250165,-500.0,0.00013988,3]
[330739052,1719748250174,-500.0,0.00013988,3]
[330739053,1719748250184,-820.44,0.00013988,3]
[330739054,1719748250193,-500.0,0.00013988,3]
[330739055,1719748250203,-500.0,0.00013988,3]
[330739056,1719748250213,-500.0,0.00013988,3]
[330739057,1719748250222,-508.0,0.00013988,3]
[330739058,1719748250231,-500.0,0.00013988,3]
[330739059,1719748250241,-500.0,0.00013988,3]
[330739060,1719748250250,-500.0,0.00013988,3]
[330739061,1719748250260,-907.69,0.00013988,3]
[330739062,1719748250269,-500.0,0.00013988,3]
[330739063,1719748250279,-500.0,0.00013988,3]
[330739064,1719748250289,-500.0,0.00013988,3]
[330739065,1719748250298,-744.14,0.00013988,3]
[330739066,1719748250307,-1247.1,0.00013988,3]
[330739067,1719748250318,-500.0,0.00013988,3]
[330739068,1719748250328,-500.0,0.00013988,3]
[330739069,1719748250338,-500.0,0.00013988,3]
[330739070,1719748250347,-500.0,0.00013988,3]
[330739071,1719748250357,-965.39,0.00013988,3]
[330739072,1719748250367,-717.48,0.00013988,3]
[330739073,1719748250377,-500.0,0.00013988,3]
[330739074,1719748250386,-500.0,0.00013988,3]
[330739075,1719748250396,-500.0,0.00013988,3]
[330739076,1719748250406,-500.0,0.00013988,3]
[330739077,1719748250415,-500.0,0.00013988,3]
[330739078,1719748250425,-752.53,0.00013988,3]
[330739079,1719748250434,-612.28590604,0.00013988,3]
[330739080,1719748250443,-500.0,0.00013988,3]
[330739081,1719748250452,-500.0,0.00013988,3]
[330739082,1719748250461,-500.0,0.00013988,3]
[330739083,1719748250471,-500.0,0.00013988,3]
[330739084,1719748250480,-672.14,0.00013988,3]
[330739085,1719748250489,-500.0,0.00013988,3]
[330739086,1719748250499,-500.0,0.00013988,3]
[330739087,1719748250508,-500.0,0.00013988,3]
[330739088,1719748250517,-500.0,0.00013988,3]
[330739089,1719748250526,-500.0,0.00013988,3]
[330739090,1719748250536,-1038.81,0.00013988,3]
[330739091,1719748250545,-500.0,0.00013988,3]
[330739092,1719748250554,-500.0,0.00013988,3]
[330739093,1719748250563,-500.0,0.00013988,2]
[330739094,1719748250572,-625.04814591,0.00013988,3]
[330739095,1719748250582,-507.06,0.00013988,3]
[330739096,1719748250591,-1999.08,0.00013988,3]
[330739097,1719748250600,-500.0,0.00013988,3]
[330739098,1719748250610,-500.0,0.00013988,3]
[330739099,1719748250619,-500.0,0.00013988,3]
[330739100,1719748250628,-500.0,0.00013988,3]
[330739101,1719748250637,-500.0,0.00013988,3]
[330739102,1719748250647,-500.0,0.00013988,3]
[330739103,1719748250657,-652.04,0.00013988,3]
[330739104,1719748250666,-500.0,0.00013988,3]
[330739105,1719748250676,-500.0,0.00013988,3]
[330739106,1719748250685,-500.0,0.00013988,3]
[330739107,1719748250694,-500.0,0.00013988,3]
[330739108,1719748250704,-534.5,0.00013988,3]
[330739109,1719748250714,-583.3,0.00013988,3]
[330739110,1719748250723,-500.0,0.00013988,3]
[330739111,1719748250733,-500.0,0.00013988,3]
[330739112,1719748250742,-500.0,0.00013988,3]
[330739113,1719748250752,-500.0,0.00013988,3]
[330739114,1719748250764,-500.0,0.00013988,3]
[330739115,1719748250773,-500.0,0.00013988,3]
[330739116,1719748250786,-500.0,0.00013988,3]
[330739117,1719748250797,-678.99,0.00013988,3]
[330739118,1719748250807,-669.45,0.00013988,3]
[330739119,1719748250816,-992.83,0.00013988,3]
[330739120,1719748250825,-500.0,0.00013988,3]
[330739121,1719748250836,-500.0,0.00013988,3]
[330739122,1719748250849,-500.0,0.00013988,3]
[330739123,1719748250859,-603.86,0.00013988,3]
[330739124,1719748250869,-500.0,0.00013988,3]
[330739125,1719748250878,-500.0,0.00013988,3]
[330739126,1719748250888,-927.46,0.00013988,3]
[330739127,1719748250898,-500.0,0.00013988,3]
[330739128,1719748250907,-500.0,0.00013988,3]
[330739129,1719748250917,-500.0,0.00013988,3]
[330739130,1719748250927,-500.0,0.00013988,3]
[330739131,1719748250937,-500.0,0.00013988,3]
[330739132,1719748250947,-500.0,0.00013988,3]
[330739133,1719748250956,-500.0,0.00013988,3]
[330739134,1719748250966,-1019.16,0.00013988,3]
[330739135,1719748250976,-500.0,0.00013988,3]
[330739136,1719748250986,-500.0,0.00013988,3]
[330739137,1719748250997,-500.0,0.00013988,3]
[330739138,1719748251010,-986.57,0.00013988,3]
[330739139,1719748251020,-500.0,0.00013988,3]
[330739140,1719748251029,-500.0,0.00013988,3]
[330739141,1719748251040,-500.0,0.00013988,3]
[330739142,1719748251050,-500.0,0.00013988,3]
[330739143,1719748251059,-500.0,0.00013988,3]
[330739144,1719748251068,-615.35,0.00013988,3]
[330739145,1719748251077,-500.0,0.00013988,3]
[330739146,1719748251086,-500.0,0.00013988,3]
[330739147,1719748251095,-500.0,0.00013988,3]
[330739148,1719748251106,-500.0,0.00013988,3]
[330739149,1719748251116,-500.0,0.00013988,3]
[330739150,1719748251125,-500.0,0.00013988,3]
[330739151,1719748251136,-500.0,0.00013988,3]
[330739152,1719748251145,-500.0,0.00013988,3]
[330739153,1719748251154,-500.0,0.00013988,3]
[330739154,1719748251163,-623.48,0.00013988,3]
[330739155,1719748251172,-500.0,0.00013988,3]
[330739156,1719748251181,-500.0,0.00013988,3]
[330739157,1719748251191,-500.0,0.00013988,3]
[330739158,1719748251200,-500.0,0.00013988,3]
[330739159,1719748251210,-540.24,0.00013988,3]
[330739160,1719748251220,-500.0,0.00013988,3]
[330739161,1719748251230,-500.0,0.00013988,3]
[330739162,1719748251240,-500.0,0.00013988,3]
[330739163,1719748251249,-802.5,0.00013988,3]
[330739164,1719748251259,-500.0,0.00013988,3]
[330739165,1719748251268,-500.0,0.00013988,3]
[330739166,1719748251278,-500.0,0.00013988,3]
[330739167,1719748251287,-500.0,0.00013988,3]
[330739168,1719748251296,-500.0,0.00013988,3]
[330739169,1719748251306,-500.0,0.00013988,3]
[330739170,1719748251315,-794.58,0.00013988,3]
[330739171,1719748251324,-500.0,0.00013988,3]
[330739172,1719748251334,-894.92,0.00013988,3]
[330739173,1719748251343,-500.0,0.00013988,3]
[330739174,1719748251354,-583.17,0.00013988,3]
[330739175,1719748251363,-500.0,0.00013988,3]
[330739176,1719748251373,-500.0,0.00013988,3]
[330739177,1719748251382,-500.0,0.00013988,3]
[330739178,1719748251393,-500.0,0.00013988,3]
[330739179,1719748251403,-500.0,0.00013988,3]
[330739180,1719748251413,-500.0,0.00013988,3]
[330739181,1719748251422,-500.0,0.00013988,3]
[330739182,1719748251431,-508.23,0.00013988,3]
[330739183,1719748251440,-681.67,0.00013988,3]
[330739184,1719748251450,-500.0,0.00013988,3]
[330739185,1719748251459,-500.0,0.00013988,3]
[330739186,1719748251468,-500.0,0.00013988,3]
[330739187,1719748251478,-500.0,0.00013988,3]
[330739188,1719748251487,-500.0,0.00013988,3]
[330739189,1719748251497,-500.0,0.00013988,3]
[330739190,1719748251507,-500.0,0.00013988,3]
[330739191,1719748251516,-615.42,0.00013988,3]
[330739192,1719748251527,-611.85249476,0.00013988,3]
[330739193,1719748251536,-479.47374465,0.00013988,3]
[330739194,1719748251546,-500.0,0.00013988,3]
[330739195,1719748251556,-500.0,0.00013988,3]
[330739196,1719748251566,-500.0,0.00013988,3]
[330739197,1719748251575,-500.0,0.00013988,3]
[330739198,1719748251585,-500.0,0.00013988,3]
[330739199,1719748251594,-500.0,0.00013988,3]
[330739200,1719748251603,-500.0,0.00013988,3]
[330739201,1719748251613,-221.61126552,0.00013988,3]
[330739202,1719748251623,-500.0,0.00013988,3]
[330739203,1719748251632,-500.0,0.00013988,3]
[330739204,1719748251642,-3764.31,0.00013988,3]
[330739205,1719748251652,-500.0,0.00013988,3]
[330739206,1719748251662,-500.0,0.00013988,3]
[330739207,1719748251672,-500.0,0.00013988,3]
[330739208,1719748251681,-500.0,0.00013988,3]
[330739209,1719748251691,-785.99,0.00013988,3]
[330739210,1719748251701,-1038.91,0.00013988,3]
[330739211,1719748251710,-500.0,0.00013988,3]
[330739212,1719748251720,-500.0,0.00013988,3]
[330739213,1719748251731,-500.0,0.00013988,3]
[330739214,1719748251741,-500.0,0.00013988,3]
[330739215,1719748251750,-667.69,0.00013988,3]
[330739216,1719748251760,-783.69,0.00013988,3]
[330739217,1719748251770,-500.0,0.00013988,3]
[330739218,1719748251780,-500.0,0.00013988,3]
[330739219,1719748251789,-945.05,0.00013988,3]
[330739220,1719748251799,-500.0,0.00013988,3]
[330739221,1719748251808,-228.63247177,0.00013988,3]
[330739222,1719748251817,-500.0,0.00013988,3]
[330739223,1719748251826,-500.0,0.00013988,3]
[330739224,1719748251836,-500.0,0.00013988,3]
[330739225,1719748251845,-500.0,0.00013988,3]
[330739226,1719748251854,-500.0,0.00013988,3]
[330739227,1719748251864,-62.38939496,0.00013988,3]
[330739228,1719748252417,-437.61060504,0.00013988,3]
[330739229,1719748252428,-141.73939496,0.00013988,3]
[330739230,1719748252440,-358.26060504,0.00013988,3]
[330739231,1719748252450,-500.0,0.00013988,3]
[330739232,1719748252459,-500.0,0.00013988,3]
[330739233,1719748252468,-500.0,0.00013988,3]
[330739234,1719748252480,-500.0,0.00013988,3]
[330739235,1719748252490,-500.0,0.00013988,3]
[330739236,1719748252500,-500.0,0.00013988,3]
[330739237,1719748252511,-205.10780176,0.00013988,3]
[330739238,1719748252521,-500.0,0.00013988,3]
[330739239,1719748252531,-1378.19,0.00013989,3]
[330739240,1719748252540,-1175.66,0.00013989,3]
[330739241,1719748252550,-1671.22,0.00013989,3]
[330739242,1719748252559,-500.0,0.00013989,2]
[330739243,1719748252569,-500.0,0.00013989,3]
[330739244,1719748252579,-238.67248254,0.00013989,3]
[330739245,1719748252591,-1257.15751746,0.00013989,3]
[330739246,1719748252602,-1536.03,0.00013989,3]
[330739247,1719748252612,-1738.8,0.00013989,3]
[330739248,1719748252621,-517.28,0.00013989,3]
[330739249,1719748252631,-1025.21,0.00013989,3]
[330739250,1719748252640,-500.0,0.00013989,3]
[330739251,1719748252650,-500.0,0.00013989,3]
[330739252,1719748252660,-1639.97,0.00013989,3]
[330739253,1719748252670,-500.0,0.00013989,3]
[330739254,1719748252680,-267.20880403,0.00013989,3]
[330739255,1719748252689,-500.0,0.00013989,2]
[330739256,1719748252699,-925.64,0.00013989,3]
[330739257,1719748252709,-500.0,0.00013989,3]
[330739258,1719748252719,-500.0,0.00013989,3]
[330739259,1719748252729,-500.0,0.00013989,3]
[330739260,1719748252739,-500.0,0.00013989,3]
[330739261,1719748252749,-500.0,0.00013989,3]
[330739262,1719748252760,-500.0,0.00013989,3]
[330739263,1719748252770,-500.0,0.00013989,3]
[330739264,1719748252780,-500.0,0.00013989,3]
[330739265,1719748252789,-500.0,0.00013989,3]
[330739266,1719748252799,-500.0,0.00013989,3]
[330739267,1719748252809,-500.0,0.00013989,2]
[330739268,1719748252819,-500.0,0.00013989,3]
[330739269,1719748252828,-500.0,0.00013989,3]
[330739270,1719748252838,-1377.67,0.00013989,3]
[330739271,1719748252848,-501.40401078,0.00013989,3]
[330739272,1719748252857,-344.84288439,0.00013989,3]
[330739273,1719748252867,-500.0,0.00013989,3]
[330739274,1719748252877,-500.0,0.00013989,3]
[330739275,1719748252887,-500.0,0.00013989,3]
[330739276,1719748252897,-500.0,0.00013989,3]
[330739277,1719748252907,-500.0,0.00013989,3]
[330739278,1719748252917,-653.62,0.00013989,3]
[330739279,1719748252927,-811.96,0.00013989,3]
[330739280,1719748252937,-500.0,0.00013989,3]
[330739281,1719748252947,-500.0,0.00013989,3]
[330739282,1719748252957,-500.0,0.00013989,3]
[330739283,1719748252967,-976.6,0.00013989,3]
[330739284,1719748252978,-500.0,0.00013989,3]
[330739285,1719748252988,-1465.46,0.00013989,3]
[330739286,1719748252998,-500.0,0.00013989,3]
[330739287,1719748253010,-500.0,0.00013989,3]
[330739288,1719748253020,-640.78,0.00013989,3]
[330739289,1719748253030,-821.89,0.00013989,3]
[330739290,1719748253043,-679.16,0.00013989,3]
[330739291,1719748253310,-500.0,0.00013989,3]
[330739292,1719748253320,-712.56,0.00013989,3]
[330739293,1719748253329,-840.16,0.00013989,3]
[330739294,1719748253339,-500.0,0.00013989,3]
[330739295,1719748253350,-715.74,0.00013989,3]
[330739296,1719748253360,-769.38,0.00013989,3]
[330739297,1719748253369,-500.0,0.00013989,3]
[330739298,1719748253379,-500.0,0.00013989,3]
[330739299,1719748253388,-500.0,0.00013989,3]
[330739300,1719748253398,-869.35,0.00013989,3]
[330739301,1719748253407,-500.0,0.00013989,3]
[330739302,1719748253417,-500.0,0.00013989,3]
[330739303,1719748253425,-529.23,0.00013989,3]
[330739304,1719748253435,-845.24,0.00013989,3]
[330739305,1719748253445,-1175.39,0.00013989,3]
[330739306,1719748253455,-847.91,0.00013989,3]
[330739307,1719748253466,-838.62,0.00013989,3]
[330739308,1719748253475,-500.0,0.00013989,3]
[330739309,1719748253485,-557.35,0.00013989,3]
[330739310,1719748253495,-1530.58,0.00013989,3]
[330739311,1719748253504,-651.51,0.00013989,3]
[330739312,1719748253515,-500.0,0.00013989,3]
[330739313,1719748253524,-560.48,0.00013989,3]
[330739314,1719748253533,-500.0,0.00013989,3]
[330739315,1719748253543,-1048.95,0.00013989,3]
[330739316,1719748253552,-596.89,0.00013989,3]
[330739317,1719748253562,-577.39,0.00013989,3]
[330739318,1719748253571,-805.22,0.00013989,3]
[330739319,1719748253581,-500.0,0.00013989,3]
[330739320,1719748253590,-500.0,0.00013989,3]
[330739321,1719748253599,-216.28,0.00013989,3]
[330739322,1719748253608,-500.0,0.00013989,3]
[330739323,1719748253618,-500.0,0.00013989,3]
[330739324,1719748253627,-500.0,0.00013989,3]
[330739325,1719748253637,-500.0,0.00013989,3]
[330739326,1719748253646,-500.0,0.00013989,3]
[330739327,1719748253655,-500.0,0.00013989,3]
[330739328,1719748253664,-500.0,0.00013989,3]
[330739329,1719748253673,-674.74,0.00013989,3]
[330739330,1719748253683,-1739.64,0.00013989,3]
[330739331,1719748253692,-623.03,0.00013989,3]
[330739332,1719748253701,-500.0,0.00013989,3]
[330739333,1719748253711,-500.0,0.00013989,3]
[330739334,1719748253720,-500.0,0.00013989,3]
[330739335,1719748253729,-780.8,0.00013989,3]
[330739336,1719748253738,-721.15,0.00013989,3]
[330739337,1719748253748,-160.38,0.00013989,2]
[330739338,1719748253759,-500.0,0.00013989,3]
[330739339,1719748253769,-1195.18,0.00013989,3]
[330739340,1719748253778,-987.55,0.00013989,3]
[330739341,1719748253787,-500.0,0.00013989,3]
[330739342,1719748253796,-671.4,0.00013989,3]
[330739343,1719748253805,-500.0,0.00013989,3]
[330739344,1719748253814,-1730.7,0.00013989,3]
[330739345,1719748253824,-500.0,0.00013989,3]
[330739346,1719748253833,-842.56,0.00013989,3]
[330739347,1719748253842,-500.0,0.00013989,3]
[330739348,1719748253851,-1212.23,0.00013989,3]
[330739349,1719748253860,-500.0,0.00013989,3]
[330739350,1719748253869,-1184.52,0.00013989,3]
[330739351,1719748253879,-500.0,0.00013989,2]
[330739352,1719748253888,-500.0,0.00013989,3]
[330739353,1719748253897,-606.07,0.00013989,3]
[330739354,1719748253906,-500.0,0.00013989,3]
[330739355,1719748253915,-2035.1,0.00013989,3]
[330739356,1719748253924,-559.43,0.00013989,3]
[330739357,1719748253934,-674.47,0.00013989,3]
[330739358,1719748253945,-760.82,0.00013989,3]
[330739359,1719748253954,-500.0,0.00013989,3]
[330739360,1719748253964,-500.0,0.00013989,3]
[330739361,1719748253973,-383.45011862,0.00013989,3]
[330739362,1719748253982,-500.0,0.00013989,3]
[330739363,1719748253991,-516.89,0.00013989,3]
[330739364,1719748254002,-500.0,0.00013989,3]
[330739365,1719748254016,-500.0,0.00013989,3]
[330739366,1719748254025,-1067.55,0.00013989,3]
[330739367,1719748254036,-785.04,0.00013989,3]
[330739368,1719748254051,-736.91,0.00013989,3]
[330739369,1719748254064,-2367.86,0.00013989,3]
[330739370,1719748254075,-6390.73,0.00013989,3]
[330739371,1719748254087,-998.6,0.00013989,3]
[330739372,1719748254098,-757.69,0.00013989,3]
[330739373,1719748254108,-671.25,0.00013989,3]
[330739374,1719748254119,-884.84,0.00013989,3]
[330739375,1719748254132,-665.58,0.00013989,3]
[330739376,1719748254143,-717.08,0.00013989,3]
[330739377,1719748254154,-1436.99,0.00013989,3]
[330739378,1719748254164,-500.0,0.00013989,3]
[330739379,1719748254174,-906.72,0.00013989,3]
[330739380,1719748254185,-738.5,0.00013989,3]
[330739381,1719748254195,-838.9,0.00013989,3]
[330739382,1719748254205,-652.23,0.00013989,3]
[330739383,1719748254215,-491.61691634,0.00013989,2]
[330739384,1719748254224,-579.88,0.00013989,3]
[330739385,1719748254233,-500.0,0.00013989,3]
[330739386,1719748254243,-500.0,0.00013989,3]
[330739387,1719748254252,-500.0,0.00013989,3]
[330739388,1719748254266,-500.0,0.00013989,3]
[330739389,1719748254275,-764.68,0.00013989,3]
[330739390,1719748254285,-628.58,0.00013989,3]
[330739391,1719748254294,-172.98041002,0.00013989,2]
[330739392,1719748254303,-1841.38,0.00013989,3]
[330739393,1719748254313,-2041.39,0.00013989,3]
[330739394,1719748254322,-500.0,0.00013989,3]
[330739395,1719748254331,-500.0,0.0001399,2]
[330739396,1719748254341,-500.0,0.0001399,3]
[330739397,1719748254350,-500.0,0.0001399,3]
[330739398,1719748254360,-500.0,0.0001399,3]
[330739399,1719748254371,-500.0,0.0001399,3]
[330739400,1719748254380,-500.0,0.0001399,3]
[330739401,1719748254390,-500.0,0.0001399,3]
[330739402,1719748254400,-500.0,0.0001399,3]
[330739403,1719748254409,-500.0,0.0001399,3]
[330739404,1719748254418,-500.0,0.0001399,3]
[330739405,1719748254428,-500.0,0.0001399,3]
[330739406,1719748254437,-500.0,0.0001399,3]
[330739407,1719748254446,-500.0,0.0001399,3]
[330739408,1719748254456,-500.0,0.0001399,3]
[330739409,1719748254465,-500.0,0.0001399,3]
[330739410,1719748254475,-500.0,0.0001399,3]
[330739411,1719748254484,-500.0,0.0001399,3]
[330739412,1719748254493,-500.0,0.0001399,3]
[330739413,1719748254503,-500.0,0.0001399,3]
[330739414,1719748254514,-500.0,0.0001399,3]
[330739415,1719748254523,-500.0,0.0001399,3]
[330739416,1719748254532,-500.0,0.0001399,3]
[330739417,1719748254542,-500.0,0.0001399,3]
[330739418,1719748254552,-500.0,0.0001399,3]
[330739419,1719748254562,-500.0,0.0001399,3]
[330739420,1719748254572,-500.0,0.0001399,3]
[330739421,1719748254581,-500.0,0.0001399,3]
[330739422,1719748254590,-500.0,0.0001399,3]
[330739423,1719748254600,-590.08,0.0001399,3]
[330739424,1719748254609,-500.0,0.0001399,3]
[330739425,1719748254618,-620.27,0.0001399,3]
[330739426,1719748254627,-500.0,0.0001399,3]
[330739427,1719748254637,-500.0,0.0001399,3]
[330739428,1719748254646,-500.0,0.0001399,3]
[330739429,1719748254656,-516.06,0.0001399,3]
[330739430,1719748254665,-500.0,0.0001399,3]
[330739431,1719748254674,-500.0,0.0001399,3]
[330739432,1719748254684,-500.0,0.0001399,3]
[330739433,1719748254693,-500.0,0.0001399,3]
[330739434,1719748254703,-500.0,0.0001399,2]
[330739435,1719748254712,-500.0,0.0001399,3]
[330739436,1719748254722,-500.0,0.0001399,3]
[330739437,1719748254731,-525.03,0.0001399,3]
[330739438,1719748254741,-500.0,0.0001399,3]
[330739439,1719748254750,-500.0,0.0001399,3]
[330739440,1719748254759,-500.0,0.0001399,3]
[330739441,1719748254769,-500.0,0.0001399,3]
[330739442,1719748254779,-504.52,0.0001399,3]
[330739443,1719748254789,-500.0,0.0001399,3]
[330739444,1719748254798,-500.0,0.0001399,3]
[330739445,1719748254808,-500.0,0.0001399,3]
[330739446,1719748254817,-500.0,0.0001399,3]
[330739447,1719748254827,-500.0,0.0001399,3]
[330739448,1719748254837,-500.0,0.0001399,3]
[330739449,1719748254847,-600.28,0.0001399,3]
[330739450,1719748254856,-500.0,0.0001399,3]
[330739451,1719748254866,-500.0,0.0001399,3]
[330739452,1719748254875,-804.52,0.0001399,3]
[330739453,1719748254884,-500.0,0.0001399,3]
[330739454,1719748254893,-500.0,0.0001399,3]
[330739455,1719748254902,-500.0,0.0001399,3]
[330739456,1719748254911,-500.0,0.0001399,3]
[330739457,1719748254920,-500.0,0.0001399,3]
[330739458,1719748254928,-500.0,0.0001399,3]
[330739459,1719748254938,-500.0,0.0001399,3]
[330739460,1719748254947,-517.36,0.0001399,3]
[330739461,1719748254956,-500.0,0.0001399,3]
[330739462,1719748254966,-500.0,0.0001399,3]
[330739463,1719748254974,-743.14,0.0001399,3]
[330739464,1719748254983,-500.0,0.0001399,3]
[330739465,1719748254993,-500.0,0.0001399,3]
[330739466,1719748255002,-500.0,0.0001399,3]
[330739467,1719748255012,-507.48361532,0.0001399,3]
[330739468,1719748255021,-500.0,0.0001399,3]
[330739469,1719748255030,-500.0,0.0001399,3]
[330739470,1719748255042,-500.0,0.0001399,3]
[330739471,1719748255051,-588.81,0.0001399,3]
[330739472,1719748255060,-500.0,0.0001399,3]
[330739473,1719748255069,-500.0,0.0001399,3]
[330739474,1719748255078,-500.0,0.0001399,3]
[330739475,1719748255087,-500.0,0.0001399,3]
[330739476,1719748255096,-500.0,0.0001399,3]
[330739477,1719748255105,-500.0,0.0001399,3]
[330739478,1719748255115,-500.0,0.0001399,3]
[330739479,1719748255125,-500.0,0.0001399,3]
[330739480,1719748255140,-500.0,0.0001399,3]
[330739481,1719748255149,-500.0,0.0001399,3]
[330739482,1719748255159,-500.0,0.0001399,3]
[330739483,1719748255168,-500.0,0.0001399,3]
[330739484,1719748255177,-500.0,0.0001399,3]
[330739485,1719748255186,-500.0,0.0001399,3]
[330739486,1719748255195,-500.0,0.0001399,3]
[330739487,1719748255204,-537.21,0.0001399,3]
[330739488,1719748255213,-519.99,0.0001399,3]
[330739489,1719748255223,-580.72,0.0001399,3]
[330739490,1719748255232,-500.0,0.0001399,2]
[330739491,1719748255241,-500.0,0.0001399,3]
[330739492,1719748255250,-500.0,0.0001399,3]
[330739493,1719748255259,-500.0,0.0001399,3]
[330739494,1719748255269,-502.08,0.0001399,3]
[330739495,1719748255278,-500.0,0.0001399,3]
[330739496,1719748255287,-500.0,0.0001399,3]
[330739497,1719748255296,-513.14,0.0001399,3]
[330739498,1719748255306,-500.0,0.0001399,3]
[330739499,1719748255316,-591.17,0.0001399,3]
[330739500,1719748255325,-500.0,0.0001399,3]
[330739501,1719748255335,-500.0,0.0001399,3]
[330739502,1719748255344,-555.85,0.0001399,3]
[330739503,1719748255354,-500.0,0.0001399,2]
[330739504,1719748255366,-500.0,0.0001399,3]
[330739505,1719748255375,-500.0,0.0001399,3]
[330739506,1719748255385,-199.48073486,0.0001399,3]
[330739507,1719748255394,-500.0,0.0001399,3]
[330739508,1719748255404,-500.0,0.0001399,3]
[330739509,1719748255414,-500.0,0.0001399,3]
[330739510,1719748255423,-500.0,0.0001399,3]
[330739511,1719748255433,-500.0,0.0001399,3]
[330739512,1719748255442,-500.0,0.0001399,3]
[330739513,1719748255452,-500.0,0.0001399,3]
[330739514,1719748255462,-500.0,0.0001399,3]
[330739515,1719748255471,-1022.18,0.0001399,3]
[330739516,1719748255481,-685.55,0.0001399,3]
[330739517,1719748255491,-500.0,0.0001399,3]
[330739518,1719748255501,-500.0,0.0001399,3]
[330739519,1719748255512,-500.0,0.0001399,3]
[330739520,1719748255521,-500.0,0.0001399,3]
[330739521,1719748255530,-500.0,0.0001399,3]
[330739522,1719748255540,-500.0,0.0001399,3]
[330739523,1719748255549,-500.0,0.0001399,3]
[330739524,1719748255559,-500.0,0.0001399,3]
[330739525,1719748255569,-500.0,0.0001399,3]
[330739526,1719748255578,-500.0,0.0001399,3]
[330739527,1719748255588,-500.0,0.0001399,3]
[330739528,1719748255598,-500.0,0.0001399,3]
[330739529,1719748255607,-500.0,0.0001399,3]
[330739530,1719748255617,-500.0,0.0001399,3]
[330739531,1719748255626,-500.0,0.0001399,3]
[330739532,1719748255636,-500.0,0.0001399,3]
[330739533,1719748255646,-1118.96,0.0001399,3]
[330739534,1719748255655,-500.0,0.0001399,3]
[330739535,1719748255664,-500.0,0.0001399,3]
[330739536,1719748255674,-500.0,0.0001399,3]